[Event "*** Titled Tuesday Blitz"]
[Site "Chess.com"]
[Date "2021.03.09"]
[Round "2"]
[White "Onischuk_V"]
[Black "m_ezat"]
[Result "1-0"]
[WhiteElo "2825"]
[BlackElo "2526"]
[TimeControl "180+1"]
[EndTime "10:19:30 PST"]
[Termination "Onischuk_V won by resignation"]

1. Nf3 {[%clk 0:02:57.9]} 1... Nf6 {[%clk 0:03:00.1]} 2. g3 {[%clk 0:02:58.3]}
2... g6 {[%clk 0:03:00.6]} 3. Bg2 {[%clk 0:02:58.8]} 3... Bg7 {[%clk 0:03:01.2]}
4. O-O {[%clk 0:02:59.5]} 4... O-O {[%clk 0:03:01.8]} 5. d3 {[%clk 0:02:59.9]}
5... d6 {[%clk 0:03:02.2]} 6. c4 {[%clk 0:02:58.5]} 6... Nc6 {[%clk 0:03:01]} 7.
Nc3 {[%clk 0:02:58.3]} 7... e5 {[%clk 0:03:01.1]} 8. Rb1 {[%clk 0:02:56]} 8...
h6 {[%clk 0:03:00.2]} 9. b4 {[%clk 0:02:54.5]} 9... Be6 {[%clk 0:03:00.2]} 10.
b5 {[%clk 0:02:49]} 10... Ne7 {[%clk 0:02:58.3]} 11. Qc2 {[%clk 0:02:45.9]}
11... Qd7 {[%clk 0:02:50.5]} 12. Rd1 {[%clk 0:02:45.3]} 12... Bh3 {[%clk
0:02:43.9]} 13. Bh1 {[%clk 0:02:44.7]} 13... Ng4 {[%clk 0:02:43.9]} 14. d4
{[%clk 0:02:20.9]} 14... Qe6 {[%clk 0:02:19.1]} 15. Nd5 {[%clk 0:01:59.1]} 15...
Rfc8 {[%clk 0:02:04.1]} 16. dxe5 {[%clk 0:01:55.7]} 16... dxe5 {[%clk
0:02:03.6]} 17. Ba3 {[%clk 0:01:51.7]} 17... Nf5 {[%clk 0:01:59.7]} 18. e4
{[%clk 0:01:50.2]} 18... Nd6 {[%clk 0:01:45.7]} 19. c5 {[%clk 0:01:46.4]} 19...
c6 {[%clk 0:01:39.6]} 20. bxc6 {[%clk 0:01:30.3]} 20... bxc6 {[%clk 0:01:38.4]}
21. Nc7 {[%clk 0:01:16.4]} 21... Qc4 {[%clk 0:01:16.4]} 22. Rdc1 {[%clk
0:00:41.7]} 22... Qxc2 {[%clk 0:01:03]} 23. Rxc2 {[%clk 0:00:41.6]} 23... Nxe4
{[%clk 0:01:00.3]} 24. Nxa8 {[%clk 0:00:37.2]} 24... Rxa8 {[%clk 0:01:00.4]} 25.
Ne1 {[%clk 0:00:23]} 25... Ngf6 {[%clk 0:00:29.2]} 26. Rd1 {[%clk 0:00:19.2]}
26... Ng5 {[%clk 0:00:23.5]} 27. Bg2 {[%clk 0:00:18.5]} 27... e4 {[%clk
0:00:15.6]} 28. Bxh3 {[%clk 0:00:17.9]} 28... Nxh3+ {[%clk 0:00:16.2]} 29. Kg2
{[%clk 0:00:18.4]} 29... Ng5 {[%clk 0:00:16.9]} 30. Rd6 {[%clk 0:00:17.9]} 30...
Rc8 {[%clk 0:00:15.5]} 31. Rcd2 {[%clk 0:00:17.9]} 31... Nd5 {[%clk 0:00:15.6]}
32. h4 {[%clk 0:00:17.4]} 32... Ne6 {[%clk 0:00:15.6]} 33. Nc2 {[%clk
0:00:17.6]} 33... Bf8 {[%clk 0:00:11.5]} 34. Rd7 {[%clk 0:00:17.8]} 34... Bxc5
{[%clk 0:00:10.3]} 35. Bxc5 {[%clk 0:00:17.2]} 35... Nxc5 {[%clk 0:00:10.8]} 36.
Rxa7 {[%clk 0:00:17.6]} 36... Rb8 {[%clk 0:00:11.2]} 37. Nd4 {[%clk 0:00:17.3]}
37... e3 {[%clk 0:00:10.8]} 38. fxe3 {[%clk 0:00:17.2]} 38... Nxe3+ {[%clk
0:00:11]} 39. Kf3 {[%clk 0:00:16.3]} 39... Nd5 {[%clk 0:00:10.5]} 40. Nxc6
{[%clk 0:00:16.2]} 40... Rc8 {[%clk 0:00:06.4]} 41. Rxd5 {[%clk 0:00:15.6]}
41... Rxc6 {[%clk 0:00:06.6]} 42. a4 {[%clk 0:00:12.1]} 42... Rf6+ {[%clk
0:00:06]} 43. Ke3 {[%clk 0:00:11.9]} 43... Rb6 {[%clk 0:00:05.8]} 44. Rxc5
{[%clk 0:00:11.1]} 1-0

[Event "*** Titled Tuesday Blitz"]
[Site "Chess.com"]
[Date "2021.03.09"]
[Round "2"]
[White "Keures"]
[Black "HouseOfDurin"]
[Result "0-1"]
[WhiteElo "2391"]
[BlackElo "2149"]
[TimeControl "180+1"]
[EndTime "10:19:30 PST"]
[Termination "HouseOfDurin won by resignation"]

1. d4 {[%clk 0:03:00.9]} 1... Nf6 {[%clk 0:02:59.1]} 2. c4 {[%clk 0:03:00.6]}
2... c5 {[%clk 0:02:59.5]} 3. d5 {[%clk 0:03:00]} 3... b5 {[%clk 0:03:00]} 4.
cxb5 {[%clk 0:03:00.3]} 4... a6 {[%clk 0:03:00.5]} 5. bxa6 {[%clk 0:02:58.6]}
5... Bxa6 {[%clk 0:03:01.4]} 6. Nc3 {[%clk 0:02:58.7]} 6... d6 {[%clk
0:03:01.8]} 7. e4 {[%clk 0:02:58]} 7... Bxf1 {[%clk 0:03:02.7]} 8. Kxf1 {[%clk
0:02:58.2]} 8... Nbd7 {[%clk 0:03:03.4]} 9. Nf3 {[%clk 0:02:58.3]} 9... g6
{[%clk 0:03:04.1]} 10. g3 {[%clk 0:02:58.3]} 10... Bg7 {[%clk 0:03:04.8]} 11.
Kg2 {[%clk 0:02:58.5]} 11... O-O {[%clk 0:03:05.4]} 12. Re1 {[%clk 0:02:57.1]}
12... Ng4 {[%clk 0:02:56.7]} 13. a4 {[%clk 0:02:50.6]} 13... Qa5 {[%clk
0:02:54.9]} 14. Nb5 {[%clk 0:02:44.8]} 14... Qb4 {[%clk 0:02:47.2]} 15. Re2
{[%clk 0:02:25.7]} 15... Rfb8 {[%clk 0:02:42.5]} 16. Ra3 {[%clk 0:02:22.5]}
16... Nge5 {[%clk 0:01:48]} 17. Nxe5 {[%clk 0:02:18.9]} 17... Nxe5 {[%clk
0:01:43.9]} 18. Qd2 {[%clk 0:01:56.7]} 18... Qxd2 {[%clk 0:00:54.8]} 19. Rxd2
{[%clk 0:01:42.7]} 19... Nc4 {[%clk 0:00:54.5]} 20. Rdd3 {[%clk 0:01:43.3]}
20... Nxa3 {[%clk 0:00:53.6]} 21. Rxa3 {[%clk 0:01:44.2]} 21... Bf6 {[%clk
0:00:40]} 22. f4 {[%clk 0:01:42.6]} 22... Ra5 {[%clk 0:00:32.5]} 23. Kf3 {[%clk
0:01:40.8]} 23... Kg7 {[%clk 0:00:23.8]} 24. Ke2 {[%clk 0:01:38.8]} 24... Raxb5
{[%clk 0:00:19.9]} 25. axb5 {[%clk 0:01:38.4]} 25... Rxb5 {[%clk 0:00:20.8]} 26.
Ra2 {[%clk 0:01:34.8]} 26... Rb3 {[%clk 0:00:20]} 27. Kf2 {[%clk 0:01:29.9]}
27... Bd4+ {[%clk 0:00:19.1]} 28. Kg2 {[%clk 0:01:30]} 28... Be3 {[%clk
0:00:17.1]} 29. Bxe3 {[%clk 0:01:24.7]} 29... Rxe3 {[%clk 0:00:18]} 30. Ra7
{[%clk 0:01:14.7]} 30... Rxe4 {[%clk 0:00:17.6]} 31. Kf3 {[%clk 0:01:15.2]}
31... Re1 {[%clk 0:00:16.6]} 32. Kf2 {[%clk 0:01:12]} 32... Re4 {[%clk
0:00:15.4]} 33. Kf3 {[%clk 0:01:11.6]} 33... Rb4 {[%clk 0:00:15.1]} 34. Rxe7
{[%clk 0:01:11]} 34... Rxb2 {[%clk 0:00:14.9]} 35. Rd7 {[%clk 0:01:11.5]} 35...
Rb6 {[%clk 0:00:14.3]} 36. g4 {[%clk 0:01:10.7]} 36... h6 {[%clk 0:00:14]} 37.
h4 {[%clk 0:01:10.6]} 37... Kf8 {[%clk 0:00:13.4]} 38. Ke4 {[%clk 0:01:07.8]}
38... Ke8 {[%clk 0:00:12.8]} 39. Rc7 {[%clk 0:01:08.4]} 39... Rb8 {[%clk
0:00:11.8]} 40. Rc6 {[%clk 0:01:07.1]} 40... Kd7 {[%clk 0:00:10.2]} 41. h5
{[%clk 0:01:06.1]} 41... Rc8 {[%clk 0:00:09.4]} 42. hxg6 {[%clk 0:01:05.2]}
42... fxg6 {[%clk 0:00:07.7]} 43. Ra6 {[%clk 0:01:03.7]} 43... c4 {[%clk
0:00:07.3]} 44. Ra2 {[%clk 0:00:59]} 44... c3 {[%clk 0:00:06.4]} 45. Rc2 {[%clk
0:00:59.7]} 45... h5 {[%clk 0:00:06.6]} 46. gxh5 {[%clk 0:00:59.6]} 46... gxh5
{[%clk 0:00:07.5]} 47. Kf5 {[%clk 0:00:58.9]} 47... Rc5 {[%clk 0:00:05.6]} 48.
Kg6 {[%clk 0:00:55.9]} 48... Rxd5 {[%clk 0:00:05.6]} 49. f5 {[%clk 0:00:56.8]}
49... Rd3 {[%clk 0:00:04.9]} 50. f6 {[%clk 0:00:56.6]} 50... d5 {[%clk 0:00:03]}
51. f7 {[%clk 0:00:55.1]} 51... Rg3+ {[%clk 0:00:03.5]} 52. Kxh5 {[%clk
0:00:54.2]} 52... Rf3 {[%clk 0:00:03.3]} 53. Kg6 {[%clk 0:00:54.1]} 53... d4
{[%clk 0:00:03]} 54. Kg7 {[%clk 0:00:53]} 54... Kd6 {[%clk 0:00:03.5]} 55. Rc1
{[%clk 0:00:48]} 55... Kd5 {[%clk 0:00:02.7]} 56. Re1 {[%clk 0:00:41.5]} 56...
Rxf7+ {[%clk 0:00:02.8]} 57. Kxf7 {[%clk 0:00:40.9]} 57... d3 {[%clk 0:00:03.5]}
58. Kf6 {[%clk 0:00:40.4]} 58... d2 {[%clk 0:00:03.8]} 59. Rd1 {[%clk
0:00:40.9]} 59... Kd4 {[%clk 0:00:04.2]} 60. Kf5 {[%clk 0:00:41.5]} 60... Kd3
{[%clk 0:00:04.8]} 0-1

[Event "*** Titled Tuesday Blitz"]
[Site "Chess.com"]
[Date "2021.03.09"]
[Round "2"]
[White "djano"]
[Black "temiksmozg"]
[Result "1-0"]
[WhiteElo "2471"]
[BlackElo "2658"]
[TimeControl "180+1"]
[EndTime "10:19:32 PST"]
[Termination "djano won on time"]

1. e4 {[%clk 0:03:00.9]} 1... c5 {[%clk 0:02:59.3]} 2. Nc3 {[%clk 0:03:00.6]}
2... e6 {[%clk 0:02:55.1]} 3. f4 {[%clk 0:03:00.2]} 3... d5 {[%clk 0:02:41.4]}
4. Bb5+ {[%clk 0:02:56.8]} 4... Bd7 {[%clk 0:02:37.8]} 5. Bxd7+ {[%clk
0:02:55.3]} 5... Qxd7 {[%clk 0:02:38.7]} 6. Nf3 {[%clk 0:02:53.2]} 6... Nc6
{[%clk 0:02:36.9]} 7. O-O {[%clk 0:02:49.2]} 7... d4 {[%clk 0:02:34.2]} 8. Ne2
{[%clk 0:02:47.8]} 8... d3 {[%clk 0:02:34.4]} 9. Ng3 {[%clk 0:02:39]} 9... c4
{[%clk 0:02:25.2]} 10. Kh1 {[%clk 0:02:29.6]} 10... Nf6 {[%clk 0:02:19.7]} 11.
b3 {[%clk 0:02:23.3]} 11... Bc5 {[%clk 0:02:17.9]} 12. bxc4 {[%clk 0:02:17.6]}
12... Ng4 {[%clk 0:02:18.1]} 13. cxd3 {[%clk 0:01:59.7]} 13... Qxd3 {[%clk
0:02:08.3]} 14. Bb2 {[%clk 0:01:36.5]} 14... f6 {[%clk 0:01:59.7]} 15. Qb3
{[%clk 0:00:57.8]} 15... O-O-O {[%clk 0:01:57.4]} 16. Qxd3 {[%clk 0:00:54]}
16... Rxd3 {[%clk 0:01:58.3]} 17. h3 {[%clk 0:00:54.1]} 17... h5 {[%clk
0:01:51.7]} 18. e5 {[%clk 0:00:41.4]} 18... f5 {[%clk 0:01:44.4]} 19. Ne2 {[%clk
0:00:33.4]} 19... Nf2+ {[%clk 0:00:25]} 20. Kh2 {[%clk 0:00:32.8]} 20... Rd7
{[%clk 0:00:25.2]} 21. d4 {[%clk 0:00:29.3]} 21... Nd3 {[%clk 0:00:20.6]} 22.
dxc5 {[%clk 0:00:19.8]} 22... Nxb2 {[%clk 0:00:19.9]} 23. Rab1 {[%clk
0:00:15.2]} 23... Nxc4 {[%clk 0:00:18.4]} 24. Rfc1 {[%clk 0:00:15.3]} 24... Nd2
{[%clk 0:00:16.9]} 25. Ng5 {[%clk 0:00:13.5]} 25... Nxb1 {[%clk 0:00:15.9]} 26.
Rxb1 {[%clk 0:00:14.4]} 26... Rd2 {[%clk 0:00:14.4]} 27. Nc3 {[%clk 0:00:14.6]}
27... Nd8 {[%clk 0:00:12.1]} 28. Nb5 {[%clk 0:00:13.4]} 28... a6 {[%clk
0:00:08.4]} 29. Nd6+ {[%clk 0:00:13.4]} 29... Kc7 {[%clk 0:00:08.9]} 30. a4
{[%clk 0:00:11.2]} 30... Kc6 {[%clk 0:00:08.1]} 31. a5 {[%clk 0:00:09.4]} 31...
g6 {[%clk 0:00:04.7]} 32. Rb6+ {[%clk 0:00:07.4]} 32... Kxc5 {[%clk 0:00:05.2]}
33. Nxb7+ {[%clk 0:00:07.4]} 33... Nxb7 {[%clk 0:00:05.6]} 34. Nxe6+ {[%clk
0:00:06]} 34... Kd5 {[%clk 0:00:03.5]} 35. Nc7+ {[%clk 0:00:06.2]} 35... Ke4
{[%clk 0:00:04.1]} 36. Rb4+ {[%clk 0:00:03.2]} 36... Ke3 {[%clk 0:00:03.3]} 37.
Rxb7 {[%clk 0:00:04.1]} 37... Rc8 {[%clk 0:00:02.3]} 38. Ne6 {[%clk 0:00:03.6]}
38... Rcc2 {[%clk 0:00:01.5]} 39. Rb3+ {[%clk 0:00:03.2]} 39... Ke4 {[%clk
0:00:01.5]} 40. Rg3 {[%clk 0:00:04.1]} 1-0

[Event "*** Titled Tuesday Blitz"]
[Site "Chess.com"]
[Date "2021.03.09"]
[Round "2"]
[White "Funo09"]
[Black "S-Fazulyanov"]
[Result "1-0"]
[WhiteElo "2725"]
[BlackElo "2489"]
[TimeControl "180+1"]
[EndTime "10:19:33 PST"]
[Termination "Funo09 won by checkmate"]

1. e4 {[%clk 0:03:00.9]} 1... c5 {[%clk 0:02:59.8]} 2. Nc3 {[%clk 0:02:51.5]}
2... Nc6 {[%clk 0:03:00.7]} 3. Bb5 {[%clk 0:02:51.3]} 3... g6 {[%clk 0:03:00.4]}
4. Bxc6 {[%clk 0:02:51.5]} 4... dxc6 {[%clk 0:03:01.3]} 5. f4 {[%clk 0:02:52.4]}
5... Bg7 {[%clk 0:03:01]} 6. Nf3 {[%clk 0:02:53.1]} 6... Bg4 {[%clk 0:03:00.4]}
7. O-O {[%clk 0:02:51.4]} 7... Nf6 {[%clk 0:03:00]} 8. d3 {[%clk 0:02:51.5]}
8... O-O {[%clk 0:02:59.6]} 9. h3 {[%clk 0:02:51.3]} 9... Bxf3 {[%clk
0:02:58.9]} 10. Qxf3 {[%clk 0:02:52.2]} 10... e6 {[%clk 0:02:54.3]} 11. Be3
{[%clk 0:02:51]} 11... b6 {[%clk 0:02:54.2]} 12. Kh1 {[%clk 0:02:49.7]} 12...
Qd7 {[%clk 0:02:53.9]} 13. a4 {[%clk 0:02:49.3]} 13... a5 {[%clk 0:02:51.7]} 14.
Rae1 {[%clk 0:02:47.2]} 14... Rae8 {[%clk 0:02:51.1]} 15. e5 {[%clk 0:02:40.3]}
15... Nd5 {[%clk 0:02:49]} 16. Ne4 {[%clk 0:02:40.9]} 16... f6 {[%clk
0:02:39.4]} 17. exf6 {[%clk 0:02:39.1]} 17... Nxf6 {[%clk 0:02:39.3]} 18. Nd2
{[%clk 0:02:27.2]} 18... Nd5 {[%clk 0:02:19.7]} 19. Nc4 {[%clk 0:01:39.7]} 19...
e5 {[%clk 0:02:16.7]} 20. Bd2 {[%clk 0:01:34.6]} 20... exf4 {[%clk 0:02:14.5]}
21. Rxe8 {[%clk 0:01:31]} 21... Rxe8 {[%clk 0:01:59]} 22. c3 {[%clk 0:01:30.4]}
22... Qf5 {[%clk 0:01:52.9]} 23. Bxf4 {[%clk 0:01:22.7]} 23... Nxf4 {[%clk
0:01:16.4]} 24. Nd6 {[%clk 0:01:19.7]} 24... Qxd3 {[%clk 0:00:26.5]} 25. Nxe8
{[%clk 0:01:11.2]} 25... Qxf3 {[%clk 0:00:25]} 26. Rxf3 {[%clk 0:01:12.1]} 26...
Nd5 {[%clk 0:00:24.4]} 27. Nd6 {[%clk 0:01:04.6]} 27... Be5 {[%clk 0:00:22]} 28.
Ne4 {[%clk 0:01:02.5]} 28... Kg7 {[%clk 0:00:20.7]} 29. Kg1 {[%clk 0:00:57.8]}
29... h6 {[%clk 0:00:20.8]} 30. Kf2 {[%clk 0:00:57.2]} 30... c4 {[%clk
0:00:20.9]} 31. g3 {[%clk 0:00:43.6]} 31... b5 {[%clk 0:00:21.3]} 32. Nd2 {[%clk
0:00:37.5]} 32... g5 {[%clk 0:00:18.7]} 33. Rf5 {[%clk 0:00:29.8]} 33... Bf6
{[%clk 0:00:13.2]} 34. axb5 {[%clk 0:00:26.5]} 34... Kg6 {[%clk 0:00:13.8]} 35.
g4 {[%clk 0:00:20.9]} 35... Ne7 {[%clk 0:00:13.3]} 36. Rc5 {[%clk 0:00:17.8]}
36... cxb5 {[%clk 0:00:14.2]} 37. Rxb5 {[%clk 0:00:18.7]} 37... a4 {[%clk
0:00:14.6]} 38. Nxc4 {[%clk 0:00:18.6]} 38... Kf7 {[%clk 0:00:14.1]} 39. Kf3
{[%clk 0:00:18.2]} 39... Ke6 {[%clk 0:00:14.5]} 40. Rb6+ {[%clk 0:00:18.4]}
40... Kf7 {[%clk 0:00:14.6]} 41. Ke4 {[%clk 0:00:18.7]} 41... Nc8 {[%clk
0:00:14.4]} 42. Ra6 {[%clk 0:00:18.5]} 42... Ne7 {[%clk 0:00:14.3]} 43. Ne5+
{[%clk 0:00:18.3]} 43... Bxe5 {[%clk 0:00:14.6]} 44. Kxe5 {[%clk 0:00:19.2]}
44... Ng6+ {[%clk 0:00:15.3]} 45. Ke4 {[%clk 0:00:18.7]} 45... Nf4 {[%clk
0:00:16.2]} 46. Rxh6 {[%clk 0:00:17.4]} 46... Kg7 {[%clk 0:00:16.4]} 47. Ra6
{[%clk 0:00:17.8]} 47... Nxh3 {[%clk 0:00:16.9]} 48. Rxa4 {[%clk 0:00:18.2]}
48... Nf2+ {[%clk 0:00:17.8]} 49. Kf5 {[%clk 0:00:18.6]} 49... Nd3 {[%clk
0:00:17.7]} 50. Kxg5 {[%clk 0:00:17.9]} 50... Nxb2 {[%clk 0:00:18.1]} 51. Ra7+
{[%clk 0:00:18.5]} 51... Kf8 {[%clk 0:00:19]} 52. Kf6 {[%clk 0:00:17.9]} 52...
Ke8 {[%clk 0:00:19.9]} 53. g5 {[%clk 0:00:18]} 53... Nc4 {[%clk 0:00:20.8]} 54.
g6 {[%clk 0:00:18]} 54... Nd6 {[%clk 0:00:21.4]} 55. g7 {[%clk 0:00:17.6]} 55...
Ne4+ {[%clk 0:00:22.3]} 56. Kg6 {[%clk 0:00:17.7]} 56... Nd6 {[%clk 0:00:22.7]}
57. g8=Q# {[%clk 0:00:17.6]} 1-0

[Event "*** Titled Tuesday Blitz"]
[Site "Chess.com"]
[Date "2021.03.09"]
[Round "2"]
[White "KacperPolOK"]
[Black "Fy_Rakotomaharo"]
[Result "1/2-1/2"]
[WhiteElo "2506"]
[BlackElo "2712"]
[TimeControl "180+1"]
[EndTime "10:19:33 PST"]
[Termination "Game drawn by repetition"]

1. e4 {[%clk 0:02:58.7]} 1... e5 {[%clk 0:02:52.5]} 2. Nf3 {[%clk 0:02:58.4]}
2... Nc6 {[%clk 0:02:52.8]} 3. Bb5 {[%clk 0:02:57.9]} 3... a6 {[%clk 0:02:53]}
4. Ba4 {[%clk 0:02:57.4]} 4... Bc5 {[%clk 0:02:53.2]} 5. O-O {[%clk 0:02:54.1]}
5... Nge7 {[%clk 0:02:52.9]} 6. c3 {[%clk 0:02:50.7]} 6... Ng6 {[%clk 0:02:53]}
7. d4 {[%clk 0:02:49.3]} 7... Ba7 {[%clk 0:02:52.9]} 8. Bxc6 {[%clk 0:02:36.4]}
8... dxc6 {[%clk 0:02:52.2]} 9. dxe5 {[%clk 0:02:36.6]} 9... Qxd1 {[%clk
0:02:30.6]} 10. Rxd1 {[%clk 0:02:34.5]} 10... Bg4 {[%clk 0:02:31.2]} 11. Nbd2
{[%clk 0:02:19.8]} 11... Nxe5 {[%clk 0:02:28.4]} 12. h3 {[%clk 0:02:17.8]} 12...
Nxf3+ {[%clk 0:02:16.6]} 13. Nxf3 {[%clk 0:02:15]} 13... Bh5 {[%clk 0:01:53]}
14. Bf4 {[%clk 0:02:10]} 14... Bb6 {[%clk 0:01:53.3]} 15. g4 {[%clk 0:02:02.4]}
15... Bg6 {[%clk 0:01:53.3]} 16. Ne5 {[%clk 0:01:51]} 16... h5 {[%clk
0:01:50.4]} 17. Nxg6 {[%clk 0:01:49.5]} 17... fxg6 {[%clk 0:01:49.8]} 18. Kg2
{[%clk 0:01:49.3]} 18... O-O {[%clk 0:01:44.3]} 19. Bg3 {[%clk 0:01:38]} 19...
Rae8 {[%clk 0:01:34]} 20. f3 {[%clk 0:01:37.5]} 20... Rf7 {[%clk 0:01:34.4]} 21.
Bf2 {[%clk 0:01:33.6]} 21... Bxf2 {[%clk 0:01:32.9]} 22. Kxf2 {[%clk 0:01:33.4]}
22... Rxe4 {[%clk 0:01:33.5]} 23. Re1 {[%clk 0:01:12.9]} 23... Ref4 {[%clk
0:01:27.5]} 24. Re3 {[%clk 0:01:13]} 24... a5 {[%clk 0:01:14.2]} 25. Rd1 {[%clk
0:01:11.2]} 25... a4 {[%clk 0:01:10.9]} 26. Rd8+ {[%clk 0:01:06.7]} 26... Rf8
{[%clk 0:01:02.6]} 27. Rxf8+ {[%clk 0:01:05.7]} 27... Kxf8 {[%clk 0:00:59.8]}
28. Re4 {[%clk 0:01:00.9]} 28... Rxe4 {[%clk 0:00:52.9]} 29. fxe4 {[%clk
0:01:01.8]} 29... Ke7 {[%clk 0:00:49.4]} 30. Ke3 {[%clk 0:00:57.6]} 30... Kf6
{[%clk 0:00:47.8]} 31. Kf4 {[%clk 0:00:54]} 31... g5+ {[%clk 0:00:47.4]} 32. Kf3
{[%clk 0:00:52.2]} 32... h4 {[%clk 0:00:47.2]} 33. Ke3 {[%clk 0:00:52.3]} 33...
Ke5 {[%clk 0:00:46.6]} 34. Kf3 {[%clk 0:00:47.2]} 34... c5 {[%clk 0:00:44.3]}
35. Ke3 {[%clk 0:00:46.6]} 35... b5 {[%clk 0:00:44.1]} 36. Kf3 {[%clk
0:00:35.2]} 36... b4 {[%clk 0:00:43.2]} 37. a3 {[%clk 0:00:32.7]} 37... b3
{[%clk 0:00:20.4]} 38. Ke3 {[%clk 0:00:32]} 38... Ke6 {[%clk 0:00:20.7]} 39. Kf3
{[%clk 0:00:29.7]} 39... Kd6 {[%clk 0:00:21.1]} 40. Kf2 {[%clk 0:00:29.4]} 40...
Kc6 {[%clk 0:00:19.7]} 41. Ke3 {[%clk 0:00:29.1]} 41... Kd6 {[%clk 0:00:16.5]}
42. Kd3 {[%clk 0:00:28.7]} 42... Ke5 {[%clk 0:00:11.7]} 43. Ke3 {[%clk
0:00:28.9]} 43... Ke6 {[%clk 0:00:10.9]} 44. Kf3 {[%clk 0:00:28.8]} 44... Kd6
{[%clk 0:00:09]} 45. Ke3 {[%clk 0:00:28.9]} 45... Ke5 {[%clk 0:00:07.5]} 46. Kf3
{[%clk 0:00:29]} 46... g6 {[%clk 0:00:06.5]} 47. Ke3 {[%clk 0:00:28.9]} 47...
Kd6 {[%clk 0:00:06.8]} 48. Kf3 {[%clk 0:00:29.1]} 48... Kc6 {[%clk 0:00:07.6]}
49. Ke3 {[%clk 0:00:29]} 49... Kd6 {[%clk 0:00:06.9]} 50. Kf3 {[%clk 0:00:28.4]}
50... Ke5 {[%clk 0:00:06.4]} 51. Ke3 {[%clk 0:00:28]} 51... Ke6 {[%clk
0:00:06.9]} 52. Kf3 {[%clk 0:00:26.5]} 52... Kf6 {[%clk 0:00:07.4]} 53. Ke3
{[%clk 0:00:26.7]} 53... Ke5 {[%clk 0:00:07.1]} 54. Kf3 {[%clk 0:00:27]} 54...
Ke6 {[%clk 0:00:07.2]} 55. Ke3 {[%clk 0:00:27.2]} 55... Kd6 {[%clk 0:00:07.8]}
1/2-1/2

[Event "*** Titled Tuesday Blitz"]
[Site "Chess.com"]
[Date "2021.03.09"]
[Round "2"]
[White "DinaBelenkaya"]
[Black "Promacherr"]
[Result "1-0"]
[WhiteElo "2343"]
[BlackElo "2599"]
[TimeControl "180+1"]
[EndTime "10:19:34 PST"]
[Termination "DinaBelenkaya won by resignation"]

1. e4 {[%clk 0:03:00.9]} 1... e6 {[%clk 0:02:59.5]} 2. Qe2 {[%clk 0:03:00.2]}
2... Nc6 {[%clk 0:02:57.3]} 3. Nf3 {[%clk 0:02:55]} 3... Be7 {[%clk 0:02:57.7]}
4. d4 {[%clk 0:02:54.3]} 4... d5 {[%clk 0:02:57.8]} 5. e5 {[%clk 0:02:48]} 5...
Nh6 {[%clk 0:02:54.5]} 6. c3 {[%clk 0:02:43]} 6... Nf5 {[%clk 0:02:53.8]} 7. h4
{[%clk 0:02:39.4]} 7... h5 {[%clk 0:02:53.5]} 8. g3 {[%clk 0:02:38.7]} 8... Qd7
{[%clk 0:02:48.9]} 9. Bh3 {[%clk 0:02:37.4]} 9... b6 {[%clk 0:02:47]} 10. Ng5
{[%clk 0:02:36.5]} 10... a5 {[%clk 0:02:42.3]} 11. a4 {[%clk 0:02:24.3]} 11...
Ba6 {[%clk 0:02:42.2]} 12. Qf3 {[%clk 0:02:21.3]} 12... g6 {[%clk 0:02:22.3]}
13. Na3 {[%clk 0:02:17.4]} 13... Rf8 {[%clk 0:01:58.3]} 14. Nb5 {[%clk
0:02:11.4]} 14... O-O-O {[%clk 0:01:56]} 15. O-O {[%clk 0:01:55.7]} 15... Kb7
{[%clk 0:01:43.8]} 16. Bd2 {[%clk 0:01:48.1]} 16... Na7 {[%clk 0:01:38.3]} 17.
Bxf5 {[%clk 0:01:43.1]} 17... exf5 {[%clk 0:01:31.2]} 18. c4 {[%clk 0:01:43.2]}
18... Qc6 {[%clk 0:01:23]} 19. b3 {[%clk 0:01:19.1]} 19... f6 {[%clk 0:01:06.8]}
20. Rfc1 {[%clk 0:00:54.8]} 20... fxg5 {[%clk 0:00:54.1]} 21. cxd5 {[%clk
0:00:54.3]} 21... Qxd5 {[%clk 0:00:54.8]} 22. Rxc7+ {[%clk 0:00:52.2]} 22... Kb8
{[%clk 0:00:53.5]} 23. Qxd5 {[%clk 0:00:40.8]} 23... Rxd5 {[%clk 0:00:54.4]} 24.
Rxa7 {[%clk 0:00:34]} 24... Bxb5 {[%clk 0:00:49.8]} 25. Rxe7 {[%clk 0:00:34.5]}
25... Bc6 {[%clk 0:00:49.5]} 26. Bc3 {[%clk 0:00:24.4]} 26... gxh4 {[%clk
0:00:48.1]} 27. gxh4 {[%clk 0:00:25.3]} 27... f4 {[%clk 0:00:41.4]} 28. Re6
{[%clk 0:00:25.5]} 28... Kb7 {[%clk 0:00:40.8]} 29. Rxg6 {[%clk 0:00:25.4]}
29... f3 {[%clk 0:00:40.6]} 30. Re1 {[%clk 0:00:25.3]} 30... Rf4 {[%clk
0:00:40.2]} 31. e6 {[%clk 0:00:20.6]} 31... Rd8 {[%clk 0:00:28.1]} 32. Re5
{[%clk 0:00:13.3]} 32... Rxh4 {[%clk 0:00:25.7]} 33. Rg7+ {[%clk 0:00:12.3]}
33... Kc8 {[%clk 0:00:22.6]} 34. e7 {[%clk 0:00:12]} 34... Re8 {[%clk
0:00:22.1]} 35. d5 {[%clk 0:00:12.5]} 35... Bd7 {[%clk 0:00:20.5]} 36. d6 {[%clk
0:00:12.5]} 36... Kb7 {[%clk 0:00:19.9]} 37. Re3 {[%clk 0:00:10.4]} 37... Rg4+
{[%clk 0:00:18]} 38. Rxg4 {[%clk 0:00:08.5]} 38... hxg4 {[%clk 0:00:18.9]} 39.
Re4 {[%clk 0:00:07.7]} 39... Kc6 {[%clk 0:00:19]} 40. Be5 {[%clk 0:00:05.2]}
40... Kd5 {[%clk 0:00:19.4]} 41. Re3 {[%clk 0:00:05.7]} 41... Rc8 {[%clk
0:00:19.5]} 42. Kh2 {[%clk 0:00:05.8]} 42... Rc1 {[%clk 0:00:16.5]} 43. Bf4
{[%clk 0:00:05.2]} 43... Be8 {[%clk 0:00:12.6]} 44. d7 {[%clk 0:00:05.6]} 44...
Bxd7 {[%clk 0:00:13]} 45. e8=Q {[%clk 0:00:06.3]} 45... Bxe8 {[%clk 0:00:13.7]}
46. Rxe8 {[%clk 0:00:07.1]} 46... Rf1 {[%clk 0:00:13.3]} 47. Be3 {[%clk
0:00:06.1]} 47... Rb1 {[%clk 0:00:13.4]} 48. Kg3 {[%clk 0:00:06.4]} 48... Rxb3
{[%clk 0:00:13.5]} 49. Rd8+ {[%clk 0:00:07]} 49... Kc6 {[%clk 0:00:13.6]} 50.
Kxg4 {[%clk 0:00:07.9]} 50... Rb4+ {[%clk 0:00:13.6]} 51. Rd4 {[%clk 0:00:08.5]}
51... Rxa4 {[%clk 0:00:14.2]} 52. Rxa4 {[%clk 0:00:08.2]} 1-0